fUST/lending_fUST_20251116
["ID","MTS","AMOUNT","RATE_DAILY","PERIOD"]
[394078703,1763246057831,535.65,0.000111,2]
[394078704,1763246058203,441.95038872,0.000113,2]
[394078705,1763246058230,93.69961128,0.000113,2]
[394078706,1763246058327,211.03,0.0001,7]
[394078707,1763246058481,535.65,0.000114,2]
[394078708,1763246058779,535.65,0.000116,2]
[394078709,1763246059047,535.65,0.000117,2]
[394078710,1763246059320,535.65,0.000119,2]
[394078711,1763246059757,300.0,0.0001,20]
[394078712,1763246060246,535.65,0.00012,2]
[394078713,1763246061079,200.2,0.0001,20]
[394078714,1763246061107,99.8,0.0001,20]
[394078715,1763246062544,300.0,0.0001,20]
[394078716,1763246063906,300.0,0.0001,20]
[394078717,1763246065239,174.38,0.0001,20]
[394078718,1763246101638,159.42,5e-05,2]
[394078719,1763246101932,159.42,5.1e-05,2]
[394078720,1763246102214,159.42,5.3e-05,2]
[394078721,1763246102494,159.42,5.4e-05,2]
[394078722,1763246102769,159.42,5.6e-05,2]
[394078723,1763246102965,300.0,0.0001999,2]
[394078724,1763246103039,159.42,5.7e-05,2]
[394078725,1763246103327,159.42,5.9e-05,2]
[394078726,1763246103612,159.42,6e-05,2]
[394078727,1763246103898,159.42,6.1e-05,2]
[394078728,1763246104835,159.42,6.3e-05,2]
[394078729,1763246105213,159.42,6.4e-05,2]
[394078730,1763246105549,159.42,6.6e-05,2]
[394078731,1763246105826,159.42,6.7e-05,2]
[394078732,1763246106107,159.42,6.9e-05,2]
[394078733,1763246106409,159.42,7e-05,2]
[394078734,1763246106684,159.42,7.1e-05,2]
[394078735,1763246106967,159.42,7.3e-05,2]
[394078736,1763246107253,159.42,7.4e-05,2]
[394078737,1763246107527,159.42,7.6e-05,2]
[394078738,1763246107794,159.42,7.7e-05,2]
[394078739,1763246108104,159.42,7.9e-05,2]
[394078740,1763246108419,159.42,8e-05,2]
[394078741,1763246108721,159.42,8.1e-05,2]
[394078742,1763246109029,159.42,8.3e-05,2]
[394078743,1763246109335,1139.0,0.0001999,2]
[394078744,1763246109374,159.42,8.4e-05,2]
[394078745,1763246109679,159.42,8.6e-05,2]
[394078746,1763246109954,159.42,8.7e-05,2]
[394078747,1763246110229,159.42,8.9e-05,2]
[394078748,1763246110500,159.42,9e-05,2]
[394078749,1763246110772,159.42,9.1e-05,2]
[394078750,1763246111041,159.42,9.3e-05,2]
[394078751,1763246111318,159.42,9.4e-05,2]
[394078752,1763246111634,159.42,9.6e-05,2]
[394078753,1763246111957,159.42,9.7e-05,2]
[394078754,1763246112244,159.42,9.9e-05,2]
[394078755,1763246112527,159.42,0.0001,2]
[394078756,1763246113486,159.42,0.000101,2]
[394078757,1763246113808,159.42,0.000103,2]
[394078758,1763246114081,159.42,0.000104,2]
[394078759,1763246114431,159.42,0.000106,2]
[394078760,1763246114790,159.42,0.000107,2]
[394078761,1763246115102,159.42,0.000109,2]
[394078762,1763246115473,159.42,0.00011,2]
[394078763,1763246115777,159.42,0.000111,2]
[394078764,1763246116069,159.42,0.000113,2]
[394078765,1763246116351,159.42,0.000114,2]
[394078766,1763246116627,159.42,0.000116,2]
[394078767,1763246116928,159.42,0.000117,2]
[394078768,1763246117208,159.42,0.000119,2]
[394078769,1763246117553,159.42,0.00012,2]
[394078772,1763246162607,151.79,5e-05,2]
[394078773,1763246162930,151.79,5.2e-05,2]
[394078774,1763246163224,151.79,5.5e-05,2]
[394078775,1763246163550,151.79,5.7e-05,2]
[394078776,1763246163838,151.79,6e-05,2]
[394078777,1763246164122,151.79,6.2e-05,2]
[394078778,1763246164497,91.72208986,6.4e-05,2]
[394078779,1763246164526,60.06791014,6.4e-05,2]
[394078780,1763246164761,151.79,6.7e-05,2]
[394078781,1763246165046,151.79,6.9e-05,2]
[394078782,1763246165363,151.79,7.2e-05,2]
[394078783,1763246165668,151.79,7.4e-05,2]
[394078784,1763246166032,151.79,7.7e-05,2]
[394078785,1763246166366,151.79,7.9e-05,2]
[394078786,1763246166678,151.79,8.1e-05,2]
[394078787,1763246166961,151.79,8.4e-05,2]
[394078788,1763246167230,151.79,8.6e-05,2]
[394078789,1763246167587,151.79,8.9e-05,2]
[394078790,1763246168034,151.79,9.1e-05,2]
[394078791,1763246168394,151.79,9.3e-05,2]
[394078792,1763246168762,151.79,9.6e-05,2]
[394078793,1763246168943,151.79,9.8e-05,2]
[394078794,1763246169336,151.79,0.000101,2]
[394078795,1763246169616,151.79,0.000103,2]
[394078796,1763246169903,151.79,0.000106,2]
[394078797,1763246170186,151.79,0.000108,2]
[394078798,1763246170508,151.79,0.00011,2]
[394078799,1763246170809,151.79,0.000113,2]
[394078800,1763246171090,151.79,0.000115,2]
[394078801,1763246171387,151.79,0.000118,2]
[394078802,1763246171671,151.79,0.00012,2]
[394078803,1763246174672,5000.0,0.0001977,2]
[394078804,1763246182430,1724.60096834,0.0001977,2]
[394078805,1763246201644,-522.42681909,0.00019694,2]
[394078806,1763246205222,1070.01,0.000195,2]
[394078807,1763246206720,-154.49965307,0.00019694,2]
[394078808,1763246208506,-521.80173988,0.00019694,2]
[394078809,1763246211151,-300.0,0.00019694,2]
[394078810,1763246221627,169.64,5e-05,2]
[394078811,1763246221963,169.64,6.4e-05,2]
[394078812,1763246222590,169.64,7.8e-05,2]
[394078813,1763246222876,169.64,9.2e-05,2]
[394078814,1763246223159,169.64,0.000106,2]
[394078815,1763246283027,155.7,0.00016484,2]
[394078816,1763246283302,155.69,0.00016484,2]
[394078817,1763246309303,15837.9844598,0.00018991,2]
[394078818,1763246363751,302.84859387,0.000189,2]
[394078819,1763246363780,302.84859387,0.00019089,2]
[394078820,1763246363832,302.84859387,0.00019278,2]
[394078821,1763246363892,166.42791537,0.00019467,2]
[394078823,1763246385880,300.0,0.00032877,120]
[394078824,1763246391092,1416.53839056,0.000195,2]
[394078825,1763246411145,-150.0,0.00019764,2]
[394078826,1763246411169,-35.85806434,0.00019764,2]
[394078827,1763246413281,-167.98166249,0.00019764,2]
[394078828,1763246415832,-201.33922103,0.00019764,2]
[394078829,1763246428687,261.175264,0.00032876,120]
[394078830,1763246489661,257.28928431,0.00019053,2]
[394078831,1763246492399,462.65759104,0.00019053,2]
[394078832,1763246546199,-1217.11043856,0.00019548,2]
[394078833,1763246552493,311.893344,0.00018844,2]
[394078837,1763246603337,486.82435039,0.00019059,2]
[394078838,1763246605504,875.40754687,0.00019059,2]
[394078839,1763246628146,1227.81342591,0.000195,2]
[394078840,1763246628170,436.14954251,0.000195,2]
[394078854,1763246684528,711.238357,0.00030137,120]
[394078861,1763246686840,169.367572,9.419e-05,2]
[394078862,1763246687059,169.367572,0.00018839,2]
[394078865,1763246891167,-365.53497418,0.00019523,4]
[394078866,1763246891190,-390.34426908,0.00019523,4]
[394078867,1763246891212,-150.0,0.00019535,2]
[394078868,1763246891236,-87.88956144,0.00019548,2]
[394078869,1763246891260,-1307.0,0.00019563,2]
[394078870,1763246891281,-120.12057312,0.000196,2]
[394078871,1763246894859,-386.19032552,0.000196,2]
[394078872,1763246896317,-248.9782286,0.000196,2]
[394078873,1763246906494,389.20760452,0.00018991,2]
[394078874,1763246908167,2807.06145293,0.000195,2]
[394078876,1763246948634,150.0,0.00032876,120]
[394079036,1763247040456,-3e-08,0.000196,2]
[394079090,1763247251210,-570.00673977,0.000196,2]
[394079091,1763247253732,-170.11,0.000196,2]
[394079092,1763247255779,-59.88326023,0.000196,2]
[394079093,1763247255802,-101.91904594,0.00019678,2]
[394079105,1763247638818,5000.0,0.000195,2]
[394079106,1763247661101,5000.0,0.000195,2]
[394079107,1763247683346,5000.0,0.000195,2]
[394079108,1763247698884,540.52646373,0.000195,2]
[394079109,1763247707235,5000.0,0.000195,2]
[394079110,1763247729444,488.31979231,0.000195,2]
[394079111,1763247729470,4511.68020769,0.000195,2]
[394079112,1763247751929,5000.0,0.000195,2]
[394079113,1763247774183,2650.39774168,0.000195,2]
[394079115,1763247820127,702.713,0.00013699,2]
[394079116,1763247825482,648.828286,0.00032876,120]
[394079124,1763248084123,217.98,0.00016484,2]
[394079125,1763248108971,277.41493576,0.00018991,2]
[394079126,1763248111437,498.84753749,0.00018991,2]
[394079128,1763248140650,150.0,0.00032875,120]
[394079129,1763248142055,192.82,5e-05,2]
[394079130,1763248197769,-206.76341932,0.00019609,5]
[394079286,1763248240494,-366.39040813,0.00019609,5]
[394079444,1763248244176,-426.84617255,0.00019609,5]
[394079445,1763248244186,-332.0,0.00019678,2]
[394079446,1763248244195,-332.0,0.00019678,2]
[394079447,1763248244205,-300.0,0.00019695,2]
[394079448,1763248244215,-150.0,0.00019696,2]
[394079449,1763248244224,-500.0,0.00019696,2]
[394079450,1763248244233,-174.49450228,0.00019696,2]
[394079451,1763248244242,-1558.90400412,0.00019696,2]
[394079452,1763248244252,-800.0,0.000197,2]
[394079453,1763248244261,-1305.0,0.00019756,2]
[394079454,1763248244273,-166.0,0.00019764,2]
[394079455,1763248244283,-172.0,0.00019764,2]
[394079456,1763248244292,-166.0,0.00019764,2]
[394079457,1763248244301,-163.97104235,0.00019764,2]
[394079458,1763248244311,-166.0,0.00019764,2]
[394079459,1763248244320,-151.0,0.00019764,2]
[394079460,1763248244329,-332.0,0.00019764,2]
[394079461,1763248244339,-151.0,0.00019764,2]
[394079462,1763248244348,-332.0,0.00019764,2]
[394079463,1763248244358,-332.0,0.00019764,2]
[394079464,1763248244367,-332.0,0.00019764,2]
[394079465,1763248244377,-332.0,0.00019764,2]
[394079466,1763248244386,-332.0,0.00019764,2]
[394079467,1763248244395,-332.0,0.00019764,2]
[394079468,1763248244404,-332.0,0.00019764,2]
[394079469,1763248244413,-332.0,0.00019764,2]
[394079470,1763248244422,-332.0,0.00019764,2]
[394079471,1763248244431,-332.0,0.00019764,2]
[394079472,1763248244440,-263.97651535,0.00019764,2]
[394079473,1763248244449,-174.0,0.00019764,2]
[394079474,1763248244458,-174.63477033,0.00019764,2]
[394079475,1763248244467,-151.0,0.00019767,2]
[394079476,1763248244476,-155.69944327,0.00019767,2]
[394079477,1763248244486,-250.0,0.00019767,2]
[394079478,1763248244495,-250.0,0.00019767,2]
[394079479,1763248244504,-250.0,0.00019767,2]
[394079480,1763248244513,-250.0,0.00019767,2]
[394079481,1763248244524,-250.0,0.00019767,2]
[394079482,1763248244533,-250.0,0.00019767,2]
[394079483,1763248244543,-250.0,0.00019767,2]
[394079484,1763248244552,-209.40437684,0.00019767,2]
[394079485,1763248244561,-250.0,0.00019767,2]
[394079486,1763248244571,-250.0,0.00019767,2]
[394079487,1763248244664,-250.0,0.00019767,2]
[394079488,1763248244676,-250.0,0.00019767,2]
[394079489,1763248244685,-247.007,0.00019769,2]
[394079490,1763248244695,-617.65,0.00019769,3]
[394079491,1763248244704,-308.82,0.00019769,3]
[394079492,1763248244714,-154.41,0.00019769,3]
[394079493,1763248244723,-463.28,0.00019769,3]
[394079494,1763248244733,-500.0,0.00019773,2]
[394079495,1763248244742,-500.0,0.00019773,2]
[394079496,1763248244752,-500.0,0.00019773,2]
[394079497,1763248244762,-500.0,0.00019773,2]
[394079498,1763248244777,-500.0,0.00019773,2]
[394079499,1763248244786,-500.0,0.00019773,2]
[394079500,1763248244796,-500.0,0.00019773,2]
[394079501,1763248244805,-502.04118689,0.00019773,2]
[394079502,1763248244815,-500.0,0.00019773,2]
[394079503,1763248244824,-500.0,0.00019773,2]
[394079504,1763248244834,-500.0,0.00019773,2]
[394079505,1763248244843,-328.01610158,0.00019777,2]
[394079506,1763248244853,-205.16611077,0.00019778,2]
[394079507,1763248244862,-451.76520154,0.00019778,2]
[394079508,1763248244872,-500.0,0.00019778,2]
[394079509,1763248244881,-243.75812381,0.00019778,2]
[394079510,1763248244891,-500.0,0.00019778,2]
[394079511,1763248244900,-500.0,0.00019778,2]
[394079512,1763248244910,-500.0,0.00019778,2]
[394079513,1763248244919,-500.0,0.00019778,2]
[394079514,1763248244929,-27856.39599247,0.00019779,2]
[394079523,1763248246605,-955.99,0.00019779,2]
[394079546,1763248309423,296.2434185,0.00018991,2]
[394079547,1763248311596,532.70491515,0.00018991,2]
[394079548,1763248406724,-193.32945882,0.00019675,2]
[394079549,1763248408877,-106.67054118,0.00019675,2]
[394079550,1763248408899,-160.02755449,0.00019676,2]
[394079551,1763248411813,-181.88495492,0.00019661,2]
[394079552,1763248415112,-500.0,0.00019661,2]
[394079560,1763248601180,-194.8149599,0.00019661,2]
[394079561,1763248602621,-222.2980915,0.00019661,2]
[394079562,1763248605213,-148.12519696,0.00019661,2]
[394079563,1763248605237,-300.0,0.00019675,2]
[394079564,1763248605260,-54.12447182,0.00019676,2]
[394079565,1763248608076,-285.84797369,0.00019676,2]
[394079566,1763248608099,-14.15202631,0.00019676,2]
[394079584,1763248946159,-289.44003765,0.00019567,2]
[394079585,1763248947627,-413.16149395,0.00019567,2]
[394079586,1763248949582,-500.0,0.00019567,2]
[394079587,1763248952738,-356.50548942,0.00019567,2]
[394079588,1763248954222,-285.00156619,0.00019567,2]
[394079589,1763248956783,-358.32391441,0.00019567,2]
[394079590,1763248958814,-288.32254581,0.00019567,2]
[394079591,1763248960234,-167.38152891,0.00019567,2]
[394079592,1763248960259,-49.34697714,0.00019577,2]
[394079593,1763248962064,-100.65302286,0.00019577,2]
[394079594,1763248962087,-517.23648814,0.00019588,5]
[394079595,1763248964567,-482.76351186,0.00019588,5]
[394079596,1763248964588,-442.73966579,0.000196,2]
[394079597,1763248966591,-170.11,0.000196,2]
[394079598,1763248968142,-384.84889685,0.000196,2]
[394079599,1763248968166,-93.41324216,0.000196,2]
[394079600,1763248969667,-162.08989597,0.000196,2]
[394079601,1763248972307,-234.64001759,0.000196,2]
[394079602,1763248973879,-300.0,0.000196,2]
[394079603,1763248975357,-163.85684428,0.000196,2]
[394079604,1763248975379,-1.19799494,0.00019655,2]
[394079605,1763248977374,-161.19995729,0.00019655,2]
[394079606,1763248979343,-300.0,0.00019655,2]
[394079607,1763248982183,-135.15983342,0.00019655,2]
[394079608,1763248982204,-47.48988063,0.00019662,2]
[394079609,1763248984596,-203.63309217,0.00019662,2]
[394079610,1763248986099,-412.40692638,0.00019662,2]
[394079611,1763248988083,-162.506587,0.00019661,2]
[394079612,1763248989632,-291.36681348,0.00019661,2]
[394079613,1763248992631,-288.37768498,0.00019661,2]
[394079614,1763248994735,-254.54025844,0.00019661,2]
[394079615,1763248996819,-308.34641219,0.00019661,2]
[394079616,1763248998989,-263.46795628,0.00019661,2]
[394079617,1763249001508,-200.873582,0.00019661,2]
[394079618,1763249004455,-205.35222793,0.00019661,2]
[394079619,1763249008119,-181.682031,0.00019661,2]
[394079620,1763249010123,-336.96338532,0.00019661,2]
[394079621,1763249013754,-300.0,0.00019661,2]
[394079622,1763249014663,273.48612914,0.00018991,2]
[394079623,1763249017553,-188.52306138,0.00019661,2]
[394079624,1763249017577,-1.38645539,0.00019662,2]
[394079625,1763249020671,-135.08364543,0.00019662,2]
[394079626,1763249020695,-164.91635457,0.00019664,2]
[394079627,1763249023286,-135.08364543,0.00019664,2]
[394079628,1763249023315,-164.91635457,0.00019665,2]
[394079629,1763249026645,-32.68864543,0.00019665,2]
[394079630,1763249026667,-162.82,0.00019665,2]
[394079631,1763249026691,-706.25541983,0.00019665,2]
[394079632,1763249029895,-153.16895215,0.00019665,2]
[394079633,1763249033854,-59.9383482,0.00019665,2]
[394079634,1763249033883,-250.0,0.00019665,2]
[394079635,1763249033907,-118.24728333,0.00019665,2]
[394079636,1763249041531,168.39,5e-05,2]
[394079637,1763249041815,168.39,7.3e-05,2]
[394079638,1763249042121,168.39,9.7e-05,2]
[394079639,1763249042423,168.39,0.00012,2]
[394079640,1763249091507,798.15885012,0.000196,2]
[394079641,1763249097562,8528.29114988,0.00019655,2]
[394079642,1763249097584,304.61671322,0.00019655,2]
[394079643,1763249103020,160.25,5e-05,2]
[394079644,1763249103355,160.25,5.6e-05,2]
[394079645,1763249103635,160.25,6.3e-05,2]
[394079646,1763249103943,160.25,6.9e-05,2]
[394079647,1763249104293,160.25,7.5e-05,2]
[394079648,1763249104715,160.25,8.2e-05,2]
[394079649,1763249106792,4471.27,0.00019655,2]
[394079650,1763249108568,160.25,8.8e-05,2]
[394079651,1763249108919,160.25,9.5e-05,2]
[394079652,1763249109214,160.25,0.000101,2]
[394079653,1763249109519,160.25,0.000107,2]
[394079654,1763249109881,160.25,0.000114,2]
[394079655,1763249110213,160.25,0.00012,2]
[394079656,1763249110543,1923.06,5e-05,2]
[394079667,1763249163144,150.73,5e-05,2]
[394079668,1763249163434,150.73,5.2e-05,2]
[394079669,1763249163794,150.73,5.3e-05,2]
[394079670,1763249164079,150.73,5.5e-05,2]
[394079671,1763249164374,150.73,5.6e-05,2]
[394079672,1763249164676,150.73,5.8e-05,2]
[394079673,1763249166860,150.73,5.9e-05,2]
[394079674,1763249167269,150.73,6.1e-05,2]
[394079675,1763249168801,150.73,6.2e-05,2]
[394079676,1763249169123,21.49328678,6.4e-05,2]
[394079677,1763249169152,129.23671322,6.4e-05,2]
[394079678,1763249169418,150.73,6.5e-05,2]
[394079679,1763249169705,150.73,6.7e-05,2]
[394079680,1763249170666,150.73,6.8e-05,2]
[394079681,1763249171004,150.73,7e-05,2]
[394079682,1763249171291,150.73,7.1e-05,2]
[394079683,1763249171621,150.73,7.3e-05,2]
[394079684,1763249171947,150.73,7.4e-05,2]
[394079685,1763249172290,150.73,7.6e-05,2]
[394079686,1763249172579,150.73,7.7e-05,2]
[394079687,1763249172867,150.73,7.9e-05,2]
[394079688,1763249173154,150.73,8e-05,2]
[394079689,1763249173450,150.73,8.2e-05,2]
[394079690,1763249173738,150.73,8.3e-05,2]
[394079691,1763249174041,150.73,8.5e-05,2]
[394079692,1763249174359,150.73,8.7e-05,2]
[394079693,1763249174651,150.73,8.8e-05,2]
[394079694,1763249174955,150.73,9e-05,2]
[394079695,1763249175270,150.73,9.1e-05,2]
[394079696,1763249175663,150.73,9.3e-05,2]
[394079697,1763249176006,150.73,9.4e-05,2]
[394079698,1763249176337,150.73,9.6e-05,2]
[394079699,1763249176516,150.73,9.7e-05,2]
[394079700,1763249176796,150.73,9.9e-05,2]
[394079701,1763249177084,150.73,0.0001,2]
[394079702,1763249177406,150.73,0.000102,2]
[394079703,1763249177692,150.73,0.000103,2]
[394079704,1763249178635,150.73,0.000105,2]
[394079705,1763249178967,150.73,0.000106,2]
[394079706,1763249179302,150.73,0.000108,2]
[394079707,1763249179623,150.73,0.000109,2]
[394079709,1763249179960,150.73,0.000111,2]
[394079710,1763249180310,150.73,0.000112,2]
[394079711,1763249180647,150.73,0.000114,2]
[394079712,1763249180923,150.73,0.000115,2]
[394079713,1763249181193,150.73,0.000117,2]
[394079714,1763249181474,150.73,0.000118,2]
[394079715,1763249181734,150.73,0.00012,2]
[394079716,1763249215149,408.13451118,0.00018991,2]
[394079718,1763249221539,151.79,5e-05,2]
[394079719,1763249221829,151.79,5.2e-05,2]
[394079720,1763249222129,151.79,5.3e-05,2]
[394079721,1763249222418,151.79,5.5e-05,2]
[394079722,1763249222701,151.79,5.6e-05,2]
[394079723,1763249222986,151.79,5.8e-05,2]
[394079724,1763249223281,151.79,6e-05,2]
[394079725,1763249223567,151.79,6.1e-05,2]
[394079726,1763249223857,151.79,6.3e-05,2]
[394079727,1763249224144,151.79,6.4e-05,2]
[394079728,1763249224428,151.79,6.6e-05,2]
[394079729,1763249224769,151.79,6.8e-05,2]
[394079730,1763249225101,151.79,6.9e-05,2]
[394079731,1763249225383,151.79,7.1e-05,2]
[394079732,1763249225689,151.79,7.2e-05,2]
[394079733,1763249225980,151.79,7.4e-05,2]
[394079735,1763249226257,151.79,7.5e-05,2]
[394079736,1763249226539,151.79,7.7e-05,2]
[394079737,1763249226829,151.79,7.9e-05,2]
[394079738,1763249227135,151.79,8e-05,2]
[394079739,1763249227412,151.79,8.2e-05,2]
[394079740,1763249227709,151.79,8.3e-05,2]
[394079741,1763249227996,151.79,8.5e-05,2]
[394079742,1763249228387,151.79,8.7e-05,2]
[394079743,1763249228589,151.79,8.8e-05,2]
[394079744,1763249228879,90.8787756,9e-05,2]
[394079745,1763249228909,60.9112244,9e-05,2]
[394079746,1763249229164,151.79,9.1e-05,2]
[394079747,1763249229584,151.79,9.3e-05,2]
[394079748,1763249229870,151.79,9.5e-05,2]
[394079749,1763249230166,151.79,9.6e-05,2]
[394079750,1763249230470,151.79,9.8e-05,2]
[394079751,1763249230739,151.79,9.9e-05,2]
[394079752,1763249231037,151.79,0.000101,2]
[394079753,1763249231380,151.79,0.000103,2]
[394079754,1763249231617,151.79,0.000104,2]
[394079755,1763249231904,151.79,0.000106,2]
[394079756,1763249232184,151.79,0.000107,2]
[394079757,1763249232454,151.79,0.000109,2]
[394079758,1763249232732,151.79,0.00011,2]
[394079759,1763249233005,151.79,0.000112,2]
[394079760,1763249233276,151.79,0.000114,2]
[394079761,1763249233581,151.79,0.000115,2]
[394079762,1763249233943,151.79,0.000117,2]
[394079763,1763249234379,151.79,0.000118,2]
[394079764,1763249234621,151.79,0.00012,2]
[394079767,1763249264260,7055.0887756,0.00018,2]
[394079768,1763249264287,10000.01,0.00018,2]
[394079769,1763249264311,10000.01,0.00018,2]
[394079770,1763249264336,10000.01,0.00018,2]
[394079771,1763249264366,10119.19824373,0.00018,2]
[394079772,1763249264394,17195.84742013,0.00018,2]
[394079774,1763249279637,528.73,0.000195,2]
[394079775,1763249281917,203.0,5e-05,2]
[394079776,1763249282192,203.0,5.1e-05,2]
[394079777,1763249282574,203.0,5.3e-05,2]
[394079778,1763249282910,203.0,5.4e-05,2]
[394079779,1763249283304,203.0,5.6e-05,2]
[394079780,1763249283719,203.0,5.7e-05,2]
[394079781,1763249284003,203.0,5.9e-05,2]
[394079782,1763249284284,203.0,6e-05,2]
[394079783,1763249284556,203.0,6.1e-05,2]
[394079784,1763249285026,203.0,6.3e-05,2]
[394079785,1763249285238,203.0,6.4e-05,2]
[394079786,1763249285521,203.0,6.6e-05,2]
[394079787,1763249285811,203.0,6.7e-05,2]
[394079788,1763249286097,203.0,6.9e-05,2]
[394079789,1763249286383,203.0,7e-05,2]
[394079790,1763249286698,203.0,7.1e-05,2]
[394079791,1763249286985,203.0,7.3e-05,2]
[394079792,1763249287271,203.0,7.4e-05,2]
[394079793,1763249287566,203.0,7.6e-05,2]
[394079794,1763249287921,203.0,7.7e-05,2]
[394079795,1763249288258,203.0,7.9e-05,2]
[394079796,1763249288599,203.0,8e-05,2]
[394079797,1763249288893,203.0,8.1e-05,2]
[394079798,1763249289258,203.0,8.3e-05,2]
[394079799,1763249289543,203.0,8.4e-05,2]
[394079800,1763249289841,203.0,8.6e-05,2]
[394079801,1763249290124,203.0,8.7e-05,2]
[394079802,1763249290476,203.0,8.9e-05,2]
[394079803,1763249290791,203.0,9e-05,2]
[394079804,1763249291078,203.0,9.1e-05,2]
[394079805,1763249291368,203.0,9.3e-05,2]
[394079806,1763249291634,203.0,9.4e-05,2]
[394079807,1763249291904,203.0,9.6e-05,2]
[394079808,1763249292276,203.0,9.7e-05,2]
[394079810,1763249292498,203.0,9.9e-05,2]
[394079811,1763249292866,203.0,0.0001,2]
[394079812,1763249293282,203.0,0.000101,2]
[394079813,1763249293651,203.0,0.000103,2]
[394079814,1763249293936,203.0,0.000104,2]
[394079815,1763249294229,203.0,0.000106,2]
[394079816,1763249294576,203.0,0.000107,2]
[394079817,1763249295024,203.0,0.000109,2]
[394079818,1763249295348,90.15257987,0.00011,2]
[394079819,1763249295376,112.84742013,0.00011,2]
[394079820,1763249295626,203.0,0.000111,2]
[394079821,1763249295968,203.0,0.000113,2]
[394079822,1763249296254,203.0,0.000114,2]
[394079823,1763249296521,203.0,0.000116,2]
[394079824,1763249296795,203.0,0.000117,2]
[394079826,1763249297339,203.0,0.000119,2]
[394079827,1763249297629,203.0,0.00012,2]
[394079830,1763249306521,10000.01,0.00017,2]
[394079831,1763249306545,10000.01,0.00017,2]
[394079832,1763249306568,3985.28141145,0.00017,2]
[394079854,1763249329350,-200.12729724,0.00019467,2]
[394079855,1763249333213,-167.82076165,0.00019272,2]
[394079856,1763249334747,-800.0,0.00019272,2]
[394079857,1763249337184,-333.6,0.00019272,2]
[394079858,1763249338570,-2199.7582501,0.00019272,2]
[394079860,1763249341155,150.0,0.00032874,120]
[394079861,1763249341535,150.24,5e-05,2]
[394079862,1763249341758,-247.61772679,0.00019272,2]
[394079863,1763249341791,150.24,6e-05,2]
[394079864,1763249342068,150.24,7e-05,2]
[394079865,1763249342363,150.24,8e-05,2]
[394079866,1763249343309,150.24,9e-05,2]
[394079867,1763249343637,150.24,0.0001,2]
[394079868,1763249343925,150.24,0.00011,2]
[394079869,1763249344217,150.24,0.00012,2]
[394079870,1763249344437,-181.20326146,0.00019272,2]